Cogmind - Beta 16.1 @@@ ROGUE MODE // 2026.02.14 @ 20:16:48 Player: ae Result: Destroyed by C-57 Dissector with Dual-blade Saw Performance ------------- Evolutions (9) 4500 Regions Visited (20) 4000 Robots Destroyed (160) 800 Value Destroyed (4186) 4186 Prototype IDs (23) 460 Alien Tech Used (2) 400 Bonus (3300) 3300 TOTAL SCORE: 17646 Bonus ------- High Alert Combat Kills 102 Follower Combat Kills 242 Met Warlord at Base 500 MAIN.C Attacked Warlord 500 Met Warlord at Research 2000 Friendly Fire -44 Cogmind --------- Core Integrity 0/1600 Matter 270/300 Energy 99/100 System Corruption 14% Temperature Cool (0) Movement Core (50) Location -1/Command Parts ------- > --- POWER (2) -------- (None) > --- PROPULSION (5) --- (None) > --- UTILITY (14) ----- (None) > --- WEAPON (4) ------- (None) > --- INVENTORY (5) ---- Structural Scanner Peak State ------------ > --- POWER ------------ Micro Fission Core Micro Antimatter Reactor > --- PROPULSION ------- Xenon Bombardment Thruster Cooled Cesium-ion Thruster Cooled Cesium-ion Thruster Impulse Thruster Array > --- UTILITY ---------- Small Storage Unit Spectral Analyzer Advanced Sensor Array Advanced Signal Interpreter 0b10 Decoder Chip [Scout] Advanced Transmission Jammer Advanced Cloaking Device Makeshift Hacking Suite Makeshift Hacking Suite Makeshift Hacking Suite Advanced Hacking Suite Advanced Hacking Suite System Shield Advanced System Shield > --- WEAPON ----------- Advanced Micro-nuke Launcher Lance > --- INVENTORY -------- Light Quantum Reactor Xenon Bombardment Thruster Xenon Bombardment Thruster Structural Scanner Advanced Signal Interpreter Advanced Target Analyzer System Shield Transdimensional Reconstructor [Rating: 139] Favorites ----------- Power Angular Momentum Engine Engine Angular Momentum Engine Power Core Micro Fission Core Reactor Micro Antimatter Reactor Propulsion Cooled Cesium-ion Thruster Treads Light Treads Wheel Wheel Flight Unit Cooled Cesium-ion Thruster Utility Hacking Suite Device Structural Scanner Storage Huge Storage Unit Processor Advanced Signal Interpreter Hackware Hacking Suite Protection Core Shielding Weapon Light Cannon Energy Gun Particle Gun Ballistic Gun Assault Rifle Ballistic Cannon Light Cannon Launcher Mini Grenade Launcher Special Weapon Mining Laser Slashing Weapon Falx Piercing Weapon Lance Build | -11 -10 -9 -9 -8 -7 -6 -5 -5 -5 -5 -4 -4 -4 -4 -4 -3 -3 -2 -1 -1 ------- Run | Yrd Mat Mat Min Mat Fac Fac Fac Upp Upp Zhi Pro Fac Upp Upp War Pro Res Res Acc Com Slots Evolved 18 | . . 2 . 2 2 2 2 . . . . 2 . . . . 2 2 2 . Power 1 | . . . . . . . . . . . . . . . . . 1 . . . Propulsion 3 | . . . . . 2 . . . . . . . . . . . 1 . . . Utility 12 | . . . . 2 . 2 2 . . . . 2 . . . . . 2 2 . Weapon 2 | . . 2 . . . . . . . . . . . . . . . . . . Parts Attached 134 | 8 11 15 1 18 14 16 4 . 1 1 . 7 . 2 8 4 5 8 5 6 Power 19 | 1 3 2 . 2 2 3 . . . 1 . . . . 3 . . 1 1 . Engine 12 | 1 3 2 . 2 1 2 . . . . . . . . 1 . . . . . Core 3 | . . . . . 1 1 . . . . . . . . 1 . . . . . Reactor 4 | . . . . . . . . . . 1 . . . . 1 . . 1 1 . Propulsion 31 | 2 4 1 1 2 5 5 . . . . . 2 . . 1 2 1 1 1 3 Treads 5 | 2 1 . 1 1 . . . . . . . . . . . . . . . . Leg . | . . . . . . . . . . . . . . . . . . . . . Wheel 5 | . 3 1 . 1 . . . . . . . . . . . . . . . . Hover . | . . . . . . . . . . . . . . . . . . . . . Flight 21 | . . . . . 5 5 . . . . . 2 . . 1 2 1 1 1 3 Utility 52 | 3 2 1 . 8 4 6 4 . . . . 4 . 2 2 1 3 6 3 3 Device 19 | 2 . 1 . 5 1 2 2 . . . . 1 . . . 1 1 1 2 . Storage 2 | 1 1 . . . . . . . . . . . . . . . . . . . Processor 14 | . . . . 1 1 1 1 . . . . 2 . 2 . . 1 3 . 2 Hackware 15 | . . . . 1 2 3 1 . . . . 1 . . 2 . 1 2 1 1 Protection 2 | . 1 . . 1 . . . . . . . . . . . . . . . . Artifact . | . . . . . . . . . . . . . . . . . . . . . Weapon 32 | 2 2 11 . 6 3 2 . . 1 . . 1 . . 2 1 1 . . . Energy Gun 6 | 1 . 4 . 1 . . . . . . . . . . . . . . . . Energy Cannon . | . . . . . . . . . . . . . . . . . . . . . Ballistic Gun 5 | 1 1 1 . 1 1 . . . . . . . . . . . . . . . Ballistic Cannon 6 | . . 4 . 2 . . . . . . . . . . . . . . . . Launcher 4 | . . . . 2 . 1 . . . . . . . . . . 1 . . . Special Weapon 3 | . 1 2 . . . . . . . . . . . . . . . . . . Impact Weapon . | . . . . . . . . . . . . . . . . . . . . . Slashing Weapon 4 | . . . . . 2 1 . . . . . 1 . . . . . . . . Piercing Weapon 4 | . . . . . . . . . 1 . . . . . 2 1 . . . . Special Melee Weapon . | . . . . . . . . . . . . . . . . . . . . . Unidentified Prototypes 11 | . . . . 1 1 2 . . . 2 . 1 . . . . 2 1 . 1 Parts Lost 48 | . . 3 . 7 . 7 . . . . . . . 3 . 5 1 1 7 14 Power 5 | . . 1 . . . 1 . . . . . . . . . . . . 1 2 Propulsion 20 | . . . . 2 . 5 . . . . . . . 2 . 2 1 1 2 5 Utility 14 | . . . . 1 . 1 . . . . . . . 1 . 2 . . 3 6 Weapon 9 | . . 2 . 4 . . . . . . . . . . . 1 . . 1 1 Highest Loss Streak 10 | . . 1 . 4 . 5 . . . . . . . 2 . 5 1 1 7 10 To Critical Strikes . | . . . . . . . . . . . . . . . . . . . . . Average Backups 14 | 4 20 24 25 24 9 4 7 8 8 8 8 7 8 7 6 7 7 6 7 3 Power 1 | . 3 3 2 2 . . 1 1 1 1 1 1 1 1 . . 1 . . . Propulsion 2 | 2 5 4 4 5 1 . 1 1 1 1 1 1 1 . 1 1 . . 1 . Utility 6 | . 7 11 12 12 5 2 2 4 4 3 3 2 3 3 3 3 4 4 3 1 Weapon 2 | . 3 3 6 4 1 1 2 2 2 2 2 2 2 1 1 . . . . . Tool/Special . | . . . . . . . . . . . . . . . . . . . . . Unused Backups 36 | . . 5 1 4 14 1 2 . 3 2 . . . . 3 . . . 1 . Power 6 | . . 1 . 1 1 . . . 3 . . . . . . . . . . . Propulsion 4 | . . 2 . . 1 . . . . . . . . . 1 . . . . . Utility 20 | . . 2 1 2 9 . 1 . . 2 . . . . 2 . . . 1 . Weapon 6 | . . . . 1 3 1 1 . . . . . . . . . . . . . Tool/Special . | . . . . . . . . . . . . . . . . . . . . . Average Slot Usage (%) 90 | . 100 99 100 98 88 80 81 82 82 81 82 83 84 80 84 87 72 82 84 55 Engine 6 | . 14 11 11 9 5 3 5 5 5 4 5 5 5 4 2 . . . . . Treads 4 | . 16 11 11 9 1 . . . . . . . . . . . . . . . Wheel 4 | . 11 10 11 8 1 . . . . . . . . . . . . . . . Flight 11 | . . . . . 26 22 23 23 23 23 23 21 21 19 20 20 18 17 15 10 Device 7 | . 9 4 . 9 7 4 4 5 5 4 5 14 10 10 10 9 4 6 10 3 Storage 6 | . 14 11 11 9 1 . 5 5 5 5 5 5 5 5 5 5 4 4 3 . Processor 7 | . . . . 4 9 6 5 11 11 11 11 10 10 10 15 15 14 18 12 12 Hackware 12 | . . . . 1 9 25 28 23 23 23 23 21 26 23 21 21 21 21 27 23 Protection 4 | . 4 6 11 12 1 . . . . . . . . . . . . . . . Energy Gun 1 | . 1 10 . 1 . . . . . . . . . . . . . . . . Ballistic Gun 3 | . 26 10 . 1 3 . . . . . . . . . . . . . . . Ballistic Cannon 11 | . . 18 44 24 3 . . . . . . . . . . . . . . . Launcher 2 | . . . . 7 3 2 . . . . . . . . . . . 4 3 . Slashing Weapon 1 | . . . . . 2 10 5 5 . . . . 5 5 . . . . . . Piercing Weapon 1 | . . . . . . . . . 4 5 5 4 . . 7 9 2 4 4 . Peak Build Rating 139 | 7 10 15 12 28 37 55 59 59 60 63 61 94 94 94 88 91 103 124 139 114 Average Rating 46 | 4 8 12 12 20 31 44 57 59 59 60 61 71 89 86 80 85 79 111 127 85 On Entrance 56 | . 7 10 12 12 28 37 51 59 59 60 61 61 89 89 78 85 73 103 124 97 Avg Prop Armor Cover (%) 8 | . 12 8 7 7 11 . . . . . . . . . 8 . . . . . Naked Turns 9 | . . . . . . . . . . . . . . . . . . . . 9 Heaviest Build 106 | 12 89 98 98 106 106 22 23 23 23 22 22 25 25 33 28 26 28 31 42 23 Greatest Support 40 | 40 40 40 10 20 20 25 25 25 25 25 25 25 25 26 27 34 36 36 36 37 Greatest Overweight (x) 10 | . 8 9 9 10 6 1 . . . . . . . 1 1 . 1 . 1 1 Average Overweight (x) 1 | . 6 8 9 6 . . . . . . . . . . . . . . . . Largest Inventory Capacity 25 | 8 25 25 25 25 25 8 8 8 8 8 8 8 8 8 8 8 8 8 8 5 Average Capacity 15 | 6 24 25 25 25 9 5 8 8 8 8 8 8 8 8 8 8 8 8 7 5 Most Carried 25 | 8 25 25 25 25 25 8 8 8 8 8 8 8 8 8 8 8 8 8 8 5 Average Carried 14 | 4 20 24 24 24 8 4 7 8 7 8 8 7 7 7 7 7 7 7 7 3 Final Capacity 25 | 8 25 25 25 25 5 8 8 8 8 8 8 8 8 8 8 8 8 8 5 5 Final Carried 25 | 8 25 25 25 25 5 8 8 8 8 8 8 8 8 8 7 7 7 8 5 1 Class Distribution -------------------- 29% | Tank 22% | Hacker-Scout 16% | Hacker-Sprinter 7% | Mutant 4% | Hacker-Ninja 4% | Scavenger-Tank 3% | Hacker-Mutant Dominant Class ---------------- Mutant | -10/Materials Scavenger-Tank | -9/Materials Tank | -9/Mines Tank | -8/Materials Hacker-Sprinter | -7/Factory Hacker-Sprinter | -6/Factory Hacker-Sprinter | -5/Factory Hacker-Scout | -5/Upper Caves Hacker-Scout | -5/Upper Caves Hacker-Scout | -5/Zhirov Hacker-Scout | -4/Proximity Caves Hacker-Ninja | -4/Factory Hacker-Scout | -4/Upper Caves Hacker-Scout | -4/Upper Caves Hacker-Scout | -4/Warlord Hacker-Scout | -3/Proximity Caves Hacker-Mutant | -3/Research Hacker-Sprinter | -2/Research Wizard-Ninja | -1/Access Wizard-Mutant | -1/Command Resources | -11 -10 -9 -9 -8 -7 -6 -5 -5 -5 -5 -4 -4 -4 -4 -4 -3 -3 -2 -1 -1 ----------- Run | Yrd Mat Mat Min Mat Fac Fac Fac Upp Upp Zhi Pro Fac Upp Upp War Pro Res Res Acc Com Matter Collected 4245 | 276 428 410 446 1169 159 430 40 30 10 . . 54 134 105 172 10 54 188 130 . Remotely 94 | 94 . . . . . . . . . . . . . . . . . . . . Salvage Created 4435 | 106 576 704 147 1530 159 581 46 . . . . 36 51 34 . 144 . 321 . . Parts 283 | 3 31 49 14 91 13 36 5 . . . . 5 4 1 . 15 . 16 . . Haulers Intercepted 6 | . 1 . . 4 . 1 . . . . . . . . . . . . . . Recyclers Shooed 7 | . 3 . . 4 . . . . . . . . . . . . . . . . Parts Field Recycled . | . . . . . . . . . . . . . . . . . . . . . Retrieved Matter . | . . . . . . . . . . . . . . . . . . . . . Parts Self-Destructed 16 | . . . . . . . . . . . . . 1 2 . 13 . . . . Prevented . | . . . . . . . . . . . . . . . . . . . . . Parts Restored . | . . . . . . . . . . . . . . . . . . . . . Kills | -11 -10 -9 -9 -8 -7 -6 -5 -5 -5 -5 -4 -4 -4 -4 -4 -3 -3 -2 -1 -1 ------- Run | Yrd Mat Mat Min Mat Fac Fac Fac Upp Upp Zhi Pro Fac Upp Upp War Pro Res Res Acc Com Combat Hostiles Destroyed 96 | . 7 15 6 32 . 17 . . . . . . 4 2 . 4 . 9 . . Melee 12 | . . . . . . 6 . . . . . . . . . 4 . 2 . . Guns 18 | . 7 7 . 4 . . . . . . . . . . . . . . . . Cannons 23 | . . 8 6 9 . . . . . . . . . . . . . . . . AOE 43 | . . . . 19 . 11 . . . . . . 4 2 . . . 7 . . Classes Destroyed 16 | 2 5 1 2 4 . 1 . . . . . . . . . 1 . . . . Worker 18 | . 4 4 1 4 . 2 1 . . . . 1 . . . . . 1 . . Builder 7 | . . . 2 2 1 1 . . . . . . . . . . . 1 . . Tunneler 5 | 1 . 1 . 2 . . 1 . . . . . . . . . . . . . Hauler 6 | . 1 . . 4 . 1 . . . . . . . . . . . . . . Recycler 11 | 1 2 . . 6 1 1 . . . . . . . . . . . . . . Mechanic 1 | . . . . 1 . . . . . . . . . . . . . . . . Operator 6 | . 2 1 . 1 1 . . . . . . 1 . . . . . . . . Drone 2 | . . . . . . . . . . . . . . . . 2 . . . . Watcher 9 | . 1 3 . 2 1 2 . . . . . . . . . . . . . . Swarmer 40 | . . . 4 12 . 14 . . . . . . 4 . . . . 6 . . Grunt 31 | . 7 9 2 10 . . . . . . . . . . . . . 3 . . Brawler 1 | . . . . 1 . . . . . . . . . . . . . . . . Duelist 1 | . . . . 1 . . . . . . . . . . . . . . . . Sentry 14 | . . 6 . 8 . . . . . . . . . . . . . . . . Hunter 3 | . . . . 1 . . . . . . . . . 2 . . . . . . Programmer 5 | . . . . . . 3 . . . . . . . . . 2 . . . . Best Kill Streak 15 | 2 4 6 4 15 1 6 1 . . . . 1 4 2 . 2 . 7 . . Combat Bots Only 10 | . 2 5 4 10 . 6 . . . . . . 4 2 . 2 . 7 . . Max Kills in Single Turn 6 | 1 1 2 1 5 1 3 1 . . . . 1 3 1 . 1 . 6 . . Gunslinging . | . . . . . . . . . . . . . . . . . . . . . Exploded 6 | . . . . 4 . 2 . . . . . . 3 1 . . . 6 . . Melee 1 | . . . . . . 1 . . . . . . . . . 1 . 1 . . Uniques/NPCs Destroyed . | . . . . . . . . . . . . . . . . . . . . . Combat | -11 -10 -9 -9 -8 -7 -6 -5 -5 -5 -5 -4 -4 -4 -4 -4 -3 -3 -2 -1 -1 -------- Run | Yrd Mat Mat Min Mat Fac Fac Fac Upp Upp Zhi Pro Fac Upp Upp War Pro Res Res Acc Com Hostile Shots Fired 635 | . 65 57 30 106 18 71 . . . . . 2 5 22 4 59 21 7 59 109 Missed 262 | . 19 16 8 41 14 26 . . . . . . 3 6 3 26 13 4 30 53 Hits 373 | . 46 41 22 65 4 45 . . . . . 2 2 16 1 33 8 3 29 56 Melee 20 | . . . . . . . . . . . . . . . . . . . . 20 Projectile 353 | . 46 41 22 65 4 45 . . . . . 2 2 16 1 33 8 3 29 36 AOE 3 | . . . . . . . . . . . . . . . . . . . . 3 Critical Strikes 26 | . 1 1 . 1 . 2 . . . . . . . . . 4 . . 2 15 Part Disruptions 1 | . . . . . . . . . . . . . . . . . . . . 1 Damage Taken 6958 | . 542 560 201 957 36 615 . . . . . 43 43 406 18 600 187 71 667 2012 Core 2631 | . 133 35 56 109 . 214 . . . . . 43 . 94 . 286 108 44 112 1397 Absorbed by Shields 57 | . . . . . . . . . . . . . . . . 42 15 . . . Redirected to Shielding 44 | . 10 4 10 20 . . . . . . . . . . . . . . . . Regen/Repaired (Parts) 6 | . . . . . . . . . . . . . . . 6 . . . . . Core Remaining (%) 82 | 100 46 . 77 80 100 74 . . . . 100 . . . . 63 91 96 . . Volleys Fired 250 | 2 74 39 26 63 23 9 . . . . . . 3 7 . . . 3 1 . Largest 4 | 2 2 4 4 4 3 1 . . . . . . 1 1 . . . 1 1 . Hottest 205 | 60 100 205 120 165 128 43 . . . . . . 43 43 . . . 30 30 . Shots Fired 637 | 4 146 144 105 189 26 9 . . . . . . 3 7 . . . 3 1 . Gun 241 | 4 144 68 . 11 14 . . . . . . . . . . . . . . . Cannon 330 | . . 74 105 149 2 . . . . . . . . . . . . . . . Launcher 52 | . . . . 29 . 9 . . . . . . 3 7 . . . 3 1 . Special 14 | . 2 2 . . 10 . . . . . . . . . . . . . . . Kinetic 518 | 2 144 96 105 155 16 . . . . . . . . . . . . . . . Thermal 67 | 2 2 48 . 5 10 . . . . . . . . . . . . . . . Explosive 40 | . . . . 17 . 9 . . . . . . 3 7 . . . 3 1 . Electromagnetic 12 | . . . . 12 . . . . . . . . . . . . . . . . Robot Hit Streak 24 | 3 13 24 5 11 7 6 . . . . . . . . . . . 7 . . Robot Miss Streak 9 | . 3 2 8 9 4 . . . . . . . . . . . . . . . Penetration Max . | . . . . . . . . . . . . . . . . . . . . . Secondary Targets 1 | . 1 . . . . . . . . . . . . . . . . . . . Max Gunslinging Chain 1 | . 1 . . . . . . . . . . . . . . . . . . . Shots Hit Robots 357 | 3 97 94 18 80 11 28 4 . . . . 4 . . . 12 . 6 . . Core Hits 226 | 3 32 33 9 77 6 28 1 . . . . 2 5 12 . 5 . 13 . . Critical Kills . | . . . . . . . . . . . . . . . . . . . . . Critical Parts Destroyed . | . . . . . . . . . . . . . . . . . . . . . Critical Strikes 7 | . . 4 . 2 . 1 . . . . . . . . . . . . . . Burn 2 | . . 2 . . . . . . . . . . . . . . . . . . Blast 4 | . . 2 . 2 . . . . . . . . . . . . . . . . Sever 1 | . . . . . . 1 . . . . . . . . . . . . . . Melee Attacks 145 | . . . . . 7 50 13 4 . . . 16 . . . 17 7 19 12 . Impact . | . . . . . . . . . . . . . . . . . . . . . Slashing 77 | . . . . . 7 50 13 4 . . . 3 . . . . . . . . Piercing 68 | . . . . . . . . . . . . 13 . . . 17 7 19 12 . Sneak Attacks 12 | . . . . . . 5 4 . . . . 1 . . . . . 2 . . Combat Hostiles 1 | . . . . . . 1 . . . . . . . . . . . . . . Follow-up Attacks 8 | . . . . . . 6 . . . . . . . . . 2 . . . . Damage Inflicted 12585 | 31 996 1476 334 3730 249 2560 382 . . . . 307 345 543 . 470 . 1143 . 19 Guns 2058 | 31 996 684 . 162 185 . . . . . . . . . . . . . . . Cannons 2322 | . . 768 334 1220 . . . . . . . . . . . . . . . . Explosions 5451 | . . . . 2346 . 1399 . . . . . . 345 543 . . . 818 . . Melee 2685 | . . . . . 40 1161 382 . . . . 307 . . . 470 . 325 . . Ramming 21 | . . . . 2 . . . . . . . . . . . . . . . 19 Kinetic 3763 | 11 996 966 334 1271 185 . . . . . . . . . . . . . . . Thermal 770 | 20 . 510 . 216 24 . . . . . . . . . . . . . . . Explosive 5001 | . . . . 1896 . 1399 . . . . . . 345 543 . . . 818 . . Electromagnetic 345 | . . . . 345 . . . . . . . . . . . . . . . . Impact . | . . . . . . . . . . . . . . . . . . . . . Slashing 1679 | . . . . . 40 1161 382 . . . . 96 . . . . . . . . Piercing 1006 | . . . . . . . . . . . . 211 . . . 470 . 325 . . Highest Corruption 14 | . . 3 3 2 . 1 . . . . . . . . . 5 1 . 4 14 Average Corruption 2 | . . 2 3 2 . 1 . . . . . . . . . 4 1 . 2 8 Corruption Purged 1 | . . . . . . 1 . . . . . . . . . . . . . . Corruption Blocked . | . . . . . . . . . . . . . . . . . . . . . Effects 36 | . . 2 20 3 . 3 . . . . . . . . . 2 1 . 2 3 Message Errors 7 | . . 1 3 1 . . . . . . . . . . . 1 . . . 1 Matter Fused 12 | . . 1 5 1 . . . . . . . . . . . 1 1 . 1 2 Heat Flow Errors 5 | . . . 4 . . 1 . . . . . . . . . . . . . . Energy Discharges 4 | . . . 1 1 . 2 . . . . . . . . . . . . . . Parts Fused 2 | . . . 2 . . . . . . . . . . . . . . . . . Data Loss (minor) 1 | . . . . . . . . . . . . . . . . . . . 1 . Data Loss (major) 1 | . . . 1 . . . . . . . . . . . . . . . . . Misfires 2 | . . . 2 . . . . . . . . . . . . . . . . . Alerts 1 | . . . 1 . . . . . . . . . . . . . . . . . Weapon Failures 1 | . . . 1 . . . . . . . . . . . . . . . . . Overload Shots . | . . . . . . . . . . . . . . . . . . . . . Overflow Damage 704 | . . . 1 118 . 175 185 . . . . 89 19 . . 46 . 71 . . Projectiles 15 | . . . 1 14 . . . . . . . . . . . . . . . . Explosions 214 | . . . . 104 . 61 . . . . . . 19 . . . . 30 . . Melee 475 | . . . . . . 114 185 . . . . 89 . . . 46 . 41 . . Knockbacks 15 | . . 4 6 5 . . . . . . . . . . . . . . . . Impact . | . . . . . . . . . . . . . . . . . . . . . Kinetic 15 | . . 4 6 5 . . . . . . . . . . . . . . . . Secondary . | . . . . . . . . . . . . . . . . . . . . . Self-Inflicted Damage 140 | . . . . 131 . . . . . . . . . . . . . . . 9 Shots 5 | . . . . 5 . . . . . . . . . . . . . . . . Rammed 4 | . . . . 1 . . . . . . . . . . . . . . . 3 Targets Rammed 4 | . . . . 1 . . . . . . . . . . . . . . . 3 Kicked . | . . . . . . . . . . . . . . . . . . . . . Crushed . | . . . . . . . . . . . . . . . . . . . . . Highest Temperature 309 | . 64 309 237 123 69 254 . . . . . . . . . . . . . . Average Temperature 60 | . 13 85 70 38 21 113 . . . . . . . . . . . . . . Received Heat Transfer 971 | . 324 213 24 225 . 93 . . . . . 9 . 21 9 4 31 . . 18 Siege Activations . | . . . . . . . . . . . . . . . . . . . . . Martial Activations . | . . . . . . . . . . . . . . . . . . . . . Shielding Activations . | . . . . . . . . . . . . . . . . . . . . . Robots Disrupted . | . . . . . . . . . . . . . . . . . . . . . Combat Hostiles . | . . . . . . . . . . . . . . . . . . . . . Robots Corrupted . | . . . . . . . . . . . . . . . . . . . . . Combat Hostiles . | . . . . . . . . . . . . . . . . . . . . . Parts Fried . | . . . . . . . . . . . . . . . . . . . . . Impact Corruptions . | . . . . . . . . . . . . . . . . . . . . . Robots Melted . | . . . . . . . . . . . . . . . . . . . . . Combat Hostiles . | . . . . . . . . . . . . . . . . . . . . . Parts Melted 3 | . . 2 . 1 . . . . . . . . . . . . . . . . Heat Transferred 1898 | 50 . 1398 . 400 50 . . . . . . . . . . . . . . . Parts Sabotaged . | . . . . . . . . . . . . . . . . . . . . . Parts Stolen . | . . . . . . . . . . . . . . . . . . . . . Parts Stripped . | . . . . . . . . . . . . . . . . . . . . . Power Chain Reactions 3 | . . . . 3 . . . . . . . . . . . . . . . . Alert | -11 -10 -9 -9 -8 -7 -6 -5 -5 -5 -5 -4 -4 -4 -4 -4 -3 -3 -2 -1 -1 ------- Run | Yrd Mat Mat Min Mat Fac Fac Fac Upp Upp Zhi Pro Fac Upp Upp War Pro Res Res Acc Com Maximum Alert Level 2 | . . 1 . 2 . 1 . . . . . . . . . . 2 2 2 1 Low Security (%) 74 | 100 100 81 100 54 100 95 100 . . . . 100 . . . . . . . 19 Level 1 17 | . . 18 . 35 . 4 . . . . . . . . . . . 40 65 80 Level 2 8 | . . . . 10 . . . . . . . . . . . . 100 59 34 . Level 3 . | . . . . . . . . . . . . . . . . . . . . . Level 4 . | . . . . . . . . . . . . . . . . . . . . . Level 5 . | . . . . . . . . . . . . . . . . . . . . . High Security . | . . . . . . . . . . . . . . . . . . . . . Max Security . | . . . . . . . . . . . . . . . . . . . . . Peak Influence 552 | 5 65 254 161 452 198 255 65 . . . . 20 . . . . 509 552 433 261 Initial 477 | . . 13 79 . 198 29 65 . . . . . . . . . 477 294 311 246 Average 125 | . 23 96 43 178 110 59 24 . . . . 2 . . . . 466 414 378 215 Influence Increases 5911 | 10 303 492 340 1293 217 705 93 15 . . . 121 105 185 283 195 577 473 324 180 Destroy 0b10 Robot/C 2040 | . 140 300 200 680 . 340 . . . . . . 80 40 40 40 . 180 . . Destroy 0b10 Robot/NC 335 | 10 50 45 15 115 20 35 10 . . . . 15 . . . 10 . 10 . . Destroy Leader 492 | . 44 106 20 204 2 76 . . . . . . 10 10 . 10 . 10 . . Allied During Kill 98 | . . . 60 20 . . . . . . . . . . 18 . . . . . Successful Hack 235 | . 7 7 . 21 41 35 43 . . . . 24 . . . . 42 15 . . Select Force Hacks 30 | . 30 . . . . . . . . . . . . . . . . . . . Disable Machine 300 | . . 15 45 120 15 . 15 . . . . 30 . . . . . 30 30 . Destroy Structure 431 | . 2 4 . 58 4 84 10 . . . . 22 . . . . 10 108 129 . Advance Influence 450 | . . . . . . . . . . . . . . . . . 450 . . . Partial Spotted 285 | . . . . 15 75 60 15 . . . . . . . . . . 75 30 15 Lose Combat Pursuer 1215 | . 30 15 . 60 60 75 . 15 . . . 30 15 135 225 135 75 45 135 165 Influence Decreases 5685 | 10 270 321 544 855 594 631 228 10 5 . . 104 117 45 311 271 94 478 458 339 Entered New Map 1352 | . . 20 125 . 240 32 70 . 2 . . . 8 2 145 117 14 230 208 139 Time Decay 2982 | 10 270 271 379 359 247 301 158 10 3 . . 74 109 33 96 124 70 238 170 60 Lost Part 430 | . . 30 . 60 . 70 . . . . . . . 10 . 30 10 10 70 140 Lost Ally 163 | . . . 40 20 . . . . . . . 23 . . 70 . . . 10 . Purge Threat 758 | . . . . 416 107 228 . . . . . 7 . . . . . . . . Squads Dispatched 38 | . 3 2 . 6 2 8 3 . . . . 4 . 1 . . 3 2 2 2 Investigation 14 | . 1 1 . 2 1 4 2 . . . . 1 . . . . . 2 . . Extermination 8 | . . . . . 1 3 . . . . . 1 . . . . 1 . 2 . Reinforcement 14 | . 2 1 . 3 . 1 1 . . . . 2 . . . . 2 . . 2 Assault 1 | . . . . . . . . . . . . . . 1 . . . . . . Garrison 1 | . . . . 1 . . . . . . . . . . . . . . . . Intercept . | . . . . . . . . . . . . . . . . . . . . . Searches Triggered . | . . . . . . . . . . . . . . . . . . . . . Construction Impeded 3 | . . . . 2 . 1 . . . . . . . . . . . . . . Haulers Reinforced . | . . . . . . . . . . . . . . . . . . . . . Active Scanning Responses . | . . . . . . . . . . . . . . . . . . . . . Cargo Convoy Interrupts . | . . . . . . . . . . . . . . . . . . . . . Stealth | -11 -10 -9 -9 -8 -7 -6 -5 -5 -5 -5 -4 -4 -4 -4 -4 -3 -3 -2 -1 -1 --------- Run | Yrd Mat Mat Min Mat Fac Fac Fac Upp Upp Zhi Pro Fac Upp Upp War Pro Res Res Acc Com Distress Signals 14 | . . 4 . 2 . 3 . . . . . . . . 1 . . 4 . . Communications Jammed 14 | . . . . . . . . . . . . . . . . . . . 14 . Distress Signals 14 | . . . . . . . . . . . . . . . . . . . 14 . Times Spotted 314 | . 16 19 10 49 14 35 3 1 . . 1 6 3 12 34 21 14 25 24 27 Peak Tracking Total 18 | . 2 6 4 5 5 10 2 1 . . 4 2 4 9 17 6 11 7 14 18 Tactical Retreats 38 | . 2 1 . 2 2 2 . 1 . . . 2 1 4 5 3 2 2 5 4 Traps | -11 -10 -9 -9 -8 -7 -6 -5 -5 -5 -5 -4 -4 -4 -4 -4 -3 -3 -2 -1 -1 ------- Run | Yrd Mat Mat Min Mat Fac Fac Fac Upp Upp Zhi Pro Fac Upp Upp War Pro Res Res Acc Com Traps Triggered 12 | . . 3 . 2 1 2 1 . . . . . . . . . 1 . 1 1 Indirectly 1 | . . . . 1 . . . . . . . . . . . . . . . . Trap Hack Attempts . | . . . . . . . . . . . . . . . . . . . . . Triggered . | . . . . . . . . . . . . . . . . . . . . . Disarmed . | . . . . . . . . . . . . . . . . . . . . . Reprogrammed . | . . . . . . . . . . . . . . . . . . . . . Reused . | . . . . . . . . . . . . . . . . . . . . . Traps Extracted . | . . . . . . . . . . . . . . . . . . . . . Installed . | . . . . . . . . . . . . . . . . . . . . . Triggered . | . . . . . . . . . . . . . . . . . . . . . Machines | -11 -10 -9 -9 -8 -7 -6 -5 -5 -5 -5 -4 -4 -4 -4 -4 -3 -3 -2 -1 -1 ---------- Run | Yrd Mat Mat Min Mat Fac Fac Fac Upp Upp Zhi Pro Fac Upp Upp War Pro Res Res Acc Com Machines Disabled 20 | . . 1 3 8 1 . 1 . . . . 2 . . . . . 2 2 . Max in Single Turn 2 | . . 1 1 2 1 . 1 . . . . 1 . . . . . 1 1 . Garrison Access 9 | . . . . 1 1 2 1 . . . . 1 . . . . . 2 1 . Energy Cycler 1 | . . . . . . . . . . . . . . . . . . . 1 . Machines Repaired . | . . . . . . . . . . . . . . . . . . . . . Machines Dismantled . | . . . . . . . . . . . . . . . . . . . . . Machines Sabotaged . | . . . . . . . . . . . . . . . . . . . . . Overloaded Fab Kills . | . . . . . . . . . . . . . . . . . . . . . Hacking | -11 -10 -9 -9 -8 -7 -6 -5 -5 -5 -5 -4 -4 -4 -4 -4 -3 -3 -2 -1 -1 --------- Run | Yrd Mat Mat Min Mat Fac Fac Fac Upp Upp Zhi Pro Fac Upp Upp War Pro Res Res Acc Com Machines Accessed 92 | . 8 4 . 13 10 18 6 . . 6 . 6 . . 8 . 4 2 6 1 Terminals 50 | . 6 3 . 10 7 7 4 . . . . 4 . . . . 3 2 3 1 Fabricators 7 | . . . . . 1 4 . . . . . 1 . . . . . . 1 . Repair Stations 1 | . . 1 . . . . . . . . . . . . . . . . . . Recycling Units 11 | . 2 . . 2 1 3 1 . . . . . . . . . 1 . 1 . Scanalyzers 2 | . . . . . . 2 . . . . . . . . . . . . . . Garrison Access 7 | . . . . 1 1 2 1 . . . . 1 . . . . . . 1 . Total Hacks 238 | . 16 8 . 39 28 48 17 . . 19 . 13 . . 13 . 18 7 10 2 Successful 140 | . 5 3 . 16 17 31 11 . . 19 . 8 . . 13 . 8 2 6 1 Failed 98 | . 11 5 . 23 11 17 6 . . . . 5 . . . . 10 5 4 1 Catastrophic 19 | . 2 1 . 6 2 1 2 . . . . 1 . . . . 2 1 1 . Database Lockouts . | . . . . . . . . . . . . . . . . . . . . . Manual 100 | . 7 4 . 24 12 14 9 . . . . 6 . . . . 15 3 6 . Terminals 143 | . 11 7 . 28 22 25 11 . . . . 10 . . . . 15 7 5 2 Fabricators 16 | . . . . . 2 10 . . . . . 2 . . . . . . 2 . Repair Stations 1 | . . 1 . . . . . . . . . . . . . . . . . . Recycling Units 33 | . 5 . . 9 3 7 4 . . . . . . . . . 3 . 2 . Scanalyzers 4 | . . . . . . 4 . . . . . . . . . . . . . . Garrison Access 9 | . . . . 2 1 2 2 . . . . 1 . . . . . . 1 . Terminal Hacks 72 | . 1 1 . 6 7 12 3 . . 19 . 2 . . 13 . 4 2 1 1 Record 21 | . . . . . . . . . . 7 . . . . 12 . 1 1 . . Part Schematic 6 | . . . . 1 . 1 . . . 4 . . . . . . . . . . Robot Analysis 4 | . . . . . . . . . . 4 . . . . . . . . . . Prototype ID Bank 5 | . . . . . . 1 . . . 4 . . . . . . . . . . Open Door 2 | . . . . . . . . . . . . . . . 1 . . . 1 . Level Access Points 4 | . . . . . . 1 . . . . . . . . . . 1 1 . 1 Branch Access Points 5 | . 1 . . 1 1 1 . . . . . 1 . . . . . . . . Emergency Access Points 1 | . . . . . . 1 . . . . . . . . . . . . . . Terminal Index 1 | . . . . . . 1 . . . . . . . . . . . . . . Scanalyzer Index 1 | . . . . . . . 1 . . . . . . . . . . . . . Alert Level 2 | . . . . 1 1 . . . . . . . . . . . . . . . Unreport Threat 8 | . . . . 3 1 3 . . . . . 1 . . . . . . . . Locate Traps 3 | . . . . . 2 . 1 . . . . . . . . . . . . . Patrol Status 4 | . . . . . 1 2 . . . . . . . . . . 1 . . . Recall Investigation 1 | . . . . . . . 1 . . . . . . . . . . . . . Recall Reinforcements 1 | . . . . . . . . . . . . . . . . . 1 . . . Recall Assault 1 | . . . . . . 1 . . . . . . . . . . . . . . Zone Layout 2 | . . 1 . . 1 . . . . . . . . . . . . . . . Fabricator Hacks 10 | . . . . . 2 5 . . . . . 2 . . . . . . 1 . Network Status 1 | . . . . . . . . . . . . . . . . . . . 1 . Load Schematic 5 | . . . . . 1 3 . . . . . 1 . . . . . . . . Build 4 | . . . . . 1 2 . . . . . 1 . . . . . . . . Repair Station Hacks . | . . . . . . . . . . . . . . . . . . . . . Recycling Unit Hacks 17 | . 2 . . 4 2 5 2 . . . . . . . . . 1 . 1 . Process 2 | . . . . 1 . 1 . . . . . . . . . . . . . . Report Inventory 10 | . 1 . . 2 1 3 1 . . . . . . . . . 1 . 1 . Retrieve Matter 2 | . 1 . . 1 . . . . . . . . . . . . . . . . Retrieve Components 3 | . . . . . 1 1 1 . . . . . . . . . . . . . Scanalyzer 3 | . . . . . . 3 . . . . . . . . . . . . . . Retrieve Study 3 | . . . . . . 3 . . . . . . . . . . . . . . Garrison Access Hacks 7 | . . . . 1 1 2 1 . . . . 1 . . . . . . 1 . Seal Access 7 | . . . . 1 1 2 1 . . . . 1 . . . . . . 1 . Unauthorized Hacks 31 | . 2 2 . 5 5 4 5 . . . . 3 . . . . 3 . 2 . Terminals 24 | . 1 2 . 4 5 3 3 . . . . 3 . . . . 2 . 1 . Track 2 | . . 1 . . . . . . . . . . . . . . 1 . . . Assimilate 8 | . . . . . 3 2 1 . . . . 1 . . . . . . 1 . Botnet 12 | . 1 1 . 4 1 1 1 . . . . 2 . . . . 1 . . . Operators 2 | . . . . . 1 . 1 . . . . . . . . . . . . . Fabricators 1 | . . . . . . . . . . . . . . . . . . . 1 . Report 1 | . . . . . . . . . . . . . . . . . . . 1 . Repair Stations . | . . . . . . . . . . . . . . . . . . . . . Recycling Units 6 | . 1 . . 1 . 1 2 . . . . . . . . . 1 . . . Monitor 1 | . . . . . . . 1 . . . . . . . . . . . . . Reject 1 | . . . . . . . . . . . . . . . . . 1 . . . Recyclers 3 | . . . . 1 . 1 1 . . . . . . . . . . . . . Tunnel 1 | . 1 . . . . . . . . . . . . . . . . . . . Scanalyzers . | . . . . . . . . . . . . . . . . . . . . . Garrison Access . | . . . . . . . . . . . . . . . . . . . . . Data Cores Recovered 2 | . . . . . 1 . . . . . . 1 . . . . . . . . Used 1 | . . . . . . . . . . . . 1 . . . . . . . . Hacking Detections 65 | . 7 3 . 12 8 14 4 . . . . 5 . . . . 4 2 5 1 Full Trace Events 10 | . 1 . . 1 1 3 1 . . . . 1 . . . . . 2 . . Feedback Events . | . . . . . . . . . . . . . . . . . . . . . Feedback Blocked . | . . . . . . . . . . . . . . . . . . . . . Robot Schematics Acquired . | . . . . . . . . . . . . . . . . . . . . . Robots Built . | . . . . . . . . . . . . . . . . . . . . . Authchips . | . . . . . . . . . . . . . . . . . . . . . Time . | . . . . . . . . . . . . . . . . . . . . . Total Robot Build Rating . | . . . . . . . . . . . . . . . . . . . . . Part Schematics Acquired 6 | . . . . 1 . 1 . . . 4 . . . . . . . . . . Parts Built 4 | . . . . . 1 2 . . . . . 1 . . . . . . . . Authchips . | . . . . . . . . . . . . . . . . . . . . . Time 281 | . . . . . 36 152 . . . . . 93 . . . . . . . . Total Part Build Rating 20 | . . . . . 3 10 . . . . . 7 . . . . . . . . Part Studies Acquired 3 | . . . . . . 3 . . . . . . . . . . . . . . Parts Repaired . | . . . . . . . . . . . . . . . . . . . . . Time . | . . . . . . . . . . . . . . . . . . . . . Parts Recycled . | . . . . . . . . . . . . . . . . . . . . . Recycled Matter 50 | . . . . 5 . 45 . . . . . . . . . . . . . . Retrieved Matter 5 | . . . . 5 . . . . . . . . . . . . . . . . Retrieved Components 5 | . . . . . 1 3 1 . . . . . . . . . . . . . Parts Scanalyzed . | . . . . . . . . . . . . . . . . . . . . . Part Schematics Acquired . | . . . . . . . . . . . . . . . . . . . . . Parts Damaged . | . . . . . . . . . . . . . . . . . . . . . Bothacking | -11 -10 -9 -9 -8 -7 -6 -5 -5 -5 -5 -4 -4 -4 -4 -4 -3 -3 -2 -1 -1 ------------ Run | Yrd Mat Mat Min Mat Fac Fac Fac Upp Upp Zhi Pro Fac Upp Upp War Pro Res Res Acc Com Used RIF Installer . | . . . . . . . . . . . . . . . . . . . . . Robots Hacked . | . . . . . . . . . . . . . . . . . . . . . Non-combat . | . . . . . . . . . . . . . . . . . . . . . Combat . | . . . . . . . . . . . . . . . . . . . . . Robot Hacks Applied . | . . . . . . . . . . . . . . . . . . . . . Relay Couplers Released 2 | . . . . . . . . . . . . . . . . . . 2 . . Machine Destruction 2 | . . . . . . . . . . . . . . . . . . 2 . . Fabnet Peak Effective % . | . . . . . . . . . . . . . . . . . . . . . Robots Rewired 7 | . . . . . 1 . . . . . . 1 . . 5 . . . . . Allies Hacked 1 | . . . . . . . . . . . . . . . 1 . . . . . Hacks Repelled 1 | . . . . . . . . . . . . . . . 1 . . . . . Allies | -11 -10 -9 -9 -8 -7 -6 -5 -5 -5 -5 -4 -4 -4 -4 -4 -3 -3 -2 -1 -1 -------- Run | Yrd Mat Mat Min Mat Fac Fac Fac Upp Upp Zhi Pro Fac Upp Upp War Pro Res Res Acc Com Total Allies 19 | . . . 5 . 3 2 1 . . . . 2 . . 5 . . . 1 . Largest Group 5 | . . . 5 2 3 2 1 . . . . 1 . . 5 . . . 1 . Highest-Rated Group 274 | . . . 80 47 76 20 26 . . . . 49 . . 274 . . . 45 . Highest-Rated Ally 64 | . . . 31 31 40 10 26 . . . . 49 . . 64 . . . 45 . Total Orders 8 | . . . . . 3 1 1 . . . . 1 . . 2 . . . . . STAY 6 | . . . . . 3 1 1 . . . . 1 . . . . . . . . FOLLOW 1 | . . . . . . . . . . . . . . . 1 . . . . . GUARD 1 | . . . . . . . . . . . . . . . 1 . . . . . Ally Attacks 78 | . . . 38 26 . . . . . . . 4 . . 10 . . . . . Total Damage 1270 | . . . 477 361 . . . . . . . 161 . . 271 . . . . . Kills 11 | . . . 5 3 . . . . . . . 1 . . 2 . . . . . Allies Corrupted . | . . . . . . . . . . . . . . . . . . . . . Allies Melted 1 | . . . . . . . . . . . . . . . . . . 1 . . Intel | -11 -10 -9 -9 -8 -7 -6 -5 -5 -5 -5 -4 -4 -4 -4 -4 -3 -3 -2 -1 -1 ------- Run | Yrd Mat Mat Min Mat Fac Fac Fac Upp Upp Zhi Pro Fac Upp Upp War Pro Res Res Acc Com Active Infowar (turns) 8356 | 7 547 . . 1045 599 1022 396 392 102 52 163 677 362 159 726 971 154 508 352 122 Optics 7496 | . . . . 1045 306 1009 396 392 102 52 163 677 362 159 726 971 154 508 352 122 Sensors 4250 | . . . . . 511 383 228 392 102 50 163 643 362 146 148 884 . . 238 . Structural 4044 | . . . . . . 455 28 . . . . 675 362 159 726 908 . 350 338 43 Seismic 554 | 7 547 . . . . . . . . . . . . . . . . . . . Decoding 594 | . . . . . . . . . . . . . . . . . . 206 344 44 Cloaking 22 | . . . . . . . . . . . . . . . . . . . 22 . Jamming 505 | . . . . . . . 20 . . . . 89 . . . . 1 . 351 44 Robot Analysis Total 4 | . . . . . . . . . . 4 . . . . . . . . . . Derelict Logs Recovered 10 | . . . 3 . . . . 1 2 . 1 . 1 2 . . . . . . Drone Launches . | . . . . . . . . . . . . . . . . . . . . . Drone Recoveries . | . . . . . . . . . . . . . . . . . . . . . Decoded 0b10 Intel 9 | . . . . . . . . . . . . . . . . . . 3 5 1 Traps 4 | . . . . . . . . . . . . . . . . . . . 3 1 Emergency Access 5 | . . . . . . . . . . . . . . . . . . 3 2 . Exploration | -11 -10 -9 -9 -8 -7 -6 -5 -5 -5 -5 -4 -4 -4 -4 -4 -3 -3 -2 -1 -1 ------------- Run | Yrd Mat Mat Min Mat Fac Fac Fac Upp Upp Zhi Pro Fac Upp Upp War Pro Res Res Acc Com Turns Passed 12351 | 87 821 1041 1291 2342 599 1022 396 392 102 52 163 677 362 159 726 971 154 508 352 134 Spaces Moved 13950 | 40 277 407 501 1035 1106 1991 869 533 347 151 264 624 598 395 1096 955 336 1245 861 319 Core 34 | 2 . . . . . . . . . . . . . . . . . . . 32 Treads 75 | 38 24 3 . 10 . . . . . . . . . . . . . . . . Legs . | . . . . . . . . . . . . . . . . . . . . . Wheels 2235 | . 253 404 501 1025 52 . . . . . . . . . . . . . . . Hover . | . . . . . . . . . . . . . . . . . . . . . Flight 11606 | . . . . . 1054 1991 869 533 347 151 264 624 598 395 1096 955 336 1245 861 287 Fastest Speed 26 | 50 160 175 215 175 29 28 28 28 28 28 28 28 28 28 30 26 27 29 29 31 Average Speed 58 | 154 200 208 215 194 36 30 28 28 28 28 28 28 28 31 33 32 35 30 30 35 Slowest Speed 560 | 160 320 320 215 560 190 107 28 28 28 28 28 28 28 104 114 36 118 34 109 117 Overloaded Moves 23 | . . . . . . . . . . . . . . . . 17 6 . . . Propulsion Burnouts . | . . . . . . . . . . . . . . . . . . . . . Robots Hopped 93 | . . . . . 9 19 3 . 2 . . 10 . . 5 3 1 19 18 4 Potential Cave-ins . | . . . . . . . . . . . . . . . . . . . . . Cave-ins Triggered . | . . . . . . . . . . . . . . . . . . . . . Exploration Rate (%) 49 | 4 59 37 98 81 21 56 23 67 63 63 53 18 71 61 89 80 18 29 21 19 Regions Visited 20 Branch Regions 10 Pre-discovered Areas 7 | . 1 . 1 . . . . . 2 3 . . . . . . . . . . Known Exits Taken 15 | . . . . . 1 1 1 1 1 1 1 1 1 1 1 1 1 1 1 . Unknown Exits Taken 5 | 1 1 1 1 1 . . . . . . . . . . . . . . . . Scrap Searched 15 | . . . 2 . . . . 2 3 . . . 1 2 . 5 . . . . Spaces Dug 94 | . 2 . . . 4 13 5 4 . . . 11 . 34 . . 5 7 9 . Terrain Destroyed 445 | . 2 . . 64 4 123 5 4 . . . 11 36 77 . . 5 68 46 . Melee 58 | . . . . . 4 13 5 4 . . . 11 . . . . 5 7 9 . Projectile 2 | . 2 . . . . . . . . . . . . . . . . . . . AOE 385 | . . . . 64 . 110 . . . . . . 36 77 . . . 61 37 . Terrain Rammed . | . . . . . . . . . . . . . . . . . . . . . Walls Destroyed . | . . . . . . . . . . . . . . . . . . . . . Machines Disabled . | . . . . . . . . . . . . . . . . . . . . . Actions | -11 -10 -9 -9 -8 -7 -6 -5 -5 -5 -5 -4 -4 -4 -4 -4 -3 -3 -2 -1 -1 --------- Run | Yrd Mat Mat Min Mat Fac Fac Fac Upp Upp Zhi Pro Fac Upp Upp War Pro Res Res Acc Com Total 17262 | 57 404 509 652 1221 1239 2287 990 767 354 161 352 1088 789 420 1455 1591 355 1323 912 336 Wait 2569 | . 24 16 120 73 48 217 97 231 . . 89 438 185 10 308 614 1 51 41 6 Move 13758 | 39 276 406 500 1034 1087 1952 862 532 342 150 263 604 597 394 1087 948 333 1215 826 311 Hop 79 | . . . . . 9 19 3 . 2 . . 9 . . 3 3 1 10 16 4 Pick Up 97 | 8 14 11 2 11 10 7 5 . 4 2 . 2 . . 7 4 . 7 2 1 Fast Attach 63 | 7 . 6 . 5 6 10 . . 1 4 . 1 . 2 4 . 8 4 3 2 Attach 60 | . . 4 . 9 6 10 2 . . . . 2 2 3 2 4 2 3 4 7 Detach 37 | . . 2 . 4 4 9 . . . . . . 2 4 3 1 3 2 1 2 Swap 68 | 1 13 9 1 8 4 5 5 . . . . 8 . . 5 . . 4 5 . Drop 96 | . 3 16 3 13 15 7 3 . 5 5 . 3 . . 15 2 . 5 1 . Fire 250 | 2 74 39 26 63 23 9 . . . . . . 3 7 . . . 3 1 . Melee 134 | . . . . . 6 42 13 4 . . . 16 . . . 15 7 19 12 . Ram 3 | . . . . . . . . . . . . . . . . . . . . 3 Kick . | . . . . . . . . . . . . . . . . . . . . . Crush 1 | . . . . 1 . . . . . . . . . . . . . . . . Escape Stasis 15 | . . . . . 15 . . . . . . . . . . . . . . . Rewire 32 | . . . . . 6 . . . . . . 5 . . 21 . . . . . Trap . | . . . . . . . . . . . . . . . . . . . . . Miscellaneous . | . . . . . . . . . . . . . . . . . . . . . Route ------- -11/Scrapyard -10/Materials (discovered 3 exits: *Mat x2 / *Min) -9/Materials (discovered 2 exits: [*Min] / [*Sto]) -9/Mines (discovered 2 exits: *Mat x2) -8/Materials (discovered 2 exits: *Fac x2) -7/Factory (discovered 3 exits: *Fac / Low x2) -6/Factory (discovered 6 exits: *Fac x4 / *Low x2) -5/Factory (discovered 2 exits: *Fac / *Upp) -5/Upper Caves -5/Upper Caves -5/Zhirov -4/Proximity Caves -4/Factory (discovered 5 exits: *Upp x2 / Ext x2 / Arm) -4/Upper Caves -4/Upper Caves (discovered 2 exits: *Res / *War) -4/Warlord -3/Proximity Caves -3/Research (discovered 3 exits: *Res x3) -2/Research (discovered 4 exits: *Acc x3 / Qua) -1/Access -1/Command (discovered 2 exits: Sur x2) History --------- Turn | Location | Event 18 | -11/Scrapyard | Discovered new exit (range 15) 88 | -11/Scrapyard | Entered Materials 96 | -10/Materials | Identified exit to Mines 312 | -10/Materials | Build established: Mutant 647 | -10/Materials | Discovered new exit (range 8) 871 | -10/Materials | Discovered new exit (range 7) 909 | -10/Materials | Core integrity fell below 50% 909 | -10/Materials | Entered another Materials area 909 | -9/Materials | Evolved 2 slots: Weapon x2 1201 | -9/Materials | Build established: Scavenger-Tank 1759 | -9/Materials | Discovered new exit (range 7) 1897 | -9/Materials | Discovered new exit (range 12) 1950 | -9/Materials | Entered Mines 1959 | -9/Mines | Assisted by bots powering up and referring to "LRC-V3" 1972 | -9/Mines | Learned Materials terminal intel 2081 | -9/Mines | Build established: Tank 2124 | -9/Mines | Discovered new exit (range 15) 2447 | -9/Mines | Excavation squad dispatched 2447 | -9/Mines | A large section of the Mines collapsed 2720 | -9/Mines | Discovered new exit (range 8) 2835 | -9/Mines | Learned Materials stockpile data 3241 | -9/Mines | Entered Materials 3241 | -8/Materials | Accompanied by 2 allies 3241 | -8/Materials | Evolved 2 slots: Utility x2 3243 | -8/Materials | Loaded intel: 12 terminal locations 3246 | -8/Materials | Led the pair of lost Derelicts to an unsafe place 3781 | -8/Materials | Discovered new exit (range 3) 4031 | -8/Materials | Destroyed 8 combat bots 4571 | -8/Materials | Garrison activated, responded to threat 4594 | -8/Materials | Lost 4 parts (1n3w) 4604 | -8/Materials | Destroyed 10 combat bots 5141 | -8/Materials | Discovered new exit (range 17) 5583 | -8/Materials | Entered Factory 5583 | -7/Factory | Evolved 2 slots: Propulsion x2 5875 | -7/Factory | Identified exit to Lower Caves 6014 | -7/Factory | Fabricated Hacking Suite? 6064 | -7/Factory | Discovered new exit (range 4) 6065 | -7/Factory | Identified exit to Factory 6182 | -7/Factory | Entered another Factory area 6182 | -6/Factory | Evolved 2 slots: Utility x2 6216 | -6/Factory | Build established: Hacker-Sprinter 6235 | -6/Factory | Spotted B-75 Beast 6611 | -6/Factory | Lost 5 parts (4n1u) 6688 | -6/Factory | Identified exit to Factory 6966 | -6/Factory | Fabricated Cld. Cesium-ion Thruster? 6988 | -6/Factory | Identified exit to Lower Caves 7113 | -6/Factory | Fabricated Cld. Cesium-ion Thruster? 7204 | -6/Factory | Entered another Factory area 7204 | -5/Factory | Evolved 2 slots: Utility x2 7381 | -5/Factory | Watched by a mysterious "MATRIX" hacker. 7463 | -5/Factory | Discovered new exit (range 10) 7533 | -5/Factory | Discovered new exit (range 9) 7592 | -5/Factory | Identified exit to Upper Caves 7600 | -5/Factory | Entered Upper Caves 7823 | -5/Upper Caves | Build established: Hacker-Scout 7951 | -5/Upper Caves | Discovered new exit (range 5) 7964 | -5/Upper Caves | Encountered a Warlord checkpoint 7983 | -5/Upper Caves | Learned Factory stockpile data 7992 | -5/Upper Caves | Identified exit to Upper Caves 7992 | -5/Upper Caves | Entered another Upper Caves area 7997 | -5/Upper Caves | Learned location of Armory (-4) 8057 | -5/Upper Caves | Encountered a Warlord checkpoint 8066 | -5/Upper Caves | Found DCF Scrap (13 items) 8082 | -5/Upper Caves | Discovered new exit (range 4) 8085 | -5/Upper Caves | Identified exit to Zhirov 8094 | -5/Upper Caves | Entered Zhirov 8094 | -5/Zhirov | Discovered new exit (range 3) 8109 | -5/Zhirov | Found Alien Artifact 8109 | -5/Zhirov | Identified Integrated Dissipator 8109 | -5/Zhirov | Installed Integrated Dissipator, increased core heat dissipation (+20) 8127 | -5/Zhirov | Found Alien Artifact 8136 | -5/Zhirov | Learned location of Quarantine (-2) 8136 | -5/Zhirov | Learned location of Testing (-3) 8136 | -5/Zhirov | Learned location of Command (-1) 8146 | -5/Zhirov | Identified exit to Proximity Caves 8146 | -5/Zhirov | Entered Proximity Caves 8246 | -4/Proximity Caves | Discovered new exit (range 5) 8248 | -4/Proximity Caves | Learned 4 Research zone layouts 8248 | -4/Proximity Caves | Identified exit to Factory 8309 | -4/Proximity Caves | Entered Factory 8309 | -4/Factory | Evolved 2 slots: Utility x2 8341 | -4/Factory | Identified exit to Upper Caves 8341 | -4/Factory | Identified exit to Extension 8341 | -4/Factory | Identified exit to Armory 8346 | -4/Factory | Spotted B-86 Titan 8440 | -4/Factory | Fabricated Exp. Optical Array? 8618 | -4/Factory | Build established: Hacker-Ninja 8986 | -4/Factory | Entered Upper Caves 9032 | -4/Upper Caves | Encountered a Warlord checkpoint 9077 | -4/Upper Caves | Spotted B-86 Titan 9284 | -4/Upper Caves | Build established: Hacker-Scout 9311 | -4/Upper Caves | Attracted the attention of an 0b10 checkpoint 9342 | -4/Upper Caves | Discovered new exit (range 17) 9346 | -4/Upper Caves | Identified exit to Upper Caves 9348 | -4/Upper Caves | Entered another Upper Caves area 9348 | -4/Upper Caves | Discovered new exit (range 11) 9350 | -4/Upper Caves | Encountered a Warlord checkpoint 9351 | -4/Upper Caves | Learned Research terminal intel 9352 | -4/Upper Caves | Identified exit to Research 9407 | -4/Upper Caves | Attracted the attention of an 0b10 outpost 9444 | -4/Upper Caves | Spotted B-86 Titan 9466 | -4/Upper Caves | Discovered new exit (range 15) 9482 | -4/Upper Caves | Learned Research stockpile data 9488 | -4/Upper Caves | Identified exit to Warlord 9507 | -4/Upper Caves | Entered Warlord 9720 | -4/Warlord | Learned Factory fabricator intel 9720 | -4/Warlord | Learned Armory repair station intel 9720 | -4/Warlord | Learned 4 Testing zone layouts 9721 | -4/Warlord | Learned Quarantine emergency access door positions 9738 | -4/Warlord | Warlord's base attacked by MAIN.C 9801 | -4/Warlord | Met Warlord 10015 | -4/Warlord | Warlord forces counterattacked 10093 | -4/Warlord | Opened side exit 10127 | -4/Warlord | Discovered new exit (range 18) 10132 | -4/Warlord | Identified exit to Proximity Caves 10147 | -4/Warlord | Spotted Striker 10157 | -4/Warlord | Spotted Executioner 10167 | -4/Warlord | Spotted Executioner 10181 | -4/Warlord | Lost 3 allies 10233 | -4/Warlord | Entered Proximity Caves 10235 | -3/Proximity Caves | Spotter reported a threat 10283 | -3/Proximity Caves | Spotter reported a threat 11000 | -3/Proximity Caves | Spotter reported a threat 11172 | -3/Proximity Caves | Lost 5 parts (2n2u1w) 11179 | -3/Proximity Caves | Discovered exit to Research (range 15) 11204 | -3/Proximity Caves | Entered Research 11204 | -3/Research | Evolved 2 slots: Power x1, Propulsion x1 11207 | -3/Research | Loaded intel: 24 terminal locations 11270 | -3/Research | Spotted B-86 Titan 11291 | -3/Research | Identified exit to Research 11311 | -3/Research | Found Prototype Processor 11311 | -3/Research | Identified Spectral Analyzer 11332 | -3/Research | Spotted B-86 Titan 11354 | -3/Research | Found Prototype Launcher 11354 | -3/Research | Identified Adv. Micro-nuke Launcher 11358 | -3/Research | Entered another Research area 11358 | -2/Research | Warlord forces began assault on 0b10 11358 | -2/Research | Evolved 2 slots: Utility x2 11359 | -2/Research | Identified exit to Quarantine 11431 | -2/Research | Identified exit to Access 11437 | -2/Research | Met up with Warlord 11468 | -2/Research | Research machine network offline 11593 | -2/Research | Destroyed 7 combat bots 11603 | -2/Research | Borebot progress halted 11635 | -2/Research | Build established: Hacker-Sprinter 11824 | -2/Research | Lost 5 allies 11858 | -2/Research | Borebot progress halted 11866 | -2/Research | Entered Access 11866 | -1/Access | Evolved 2 slots: Utility x2 11903 | -1/Access | Energy Cycler disabled 11970 | -1/Access | Lost 6 allies 12211 | -1/Access | Discovered new exit (range 8) 12218 | -1/Access | Identified exit to Command 12218 | -1/Access | Entered Command 12226 | -1/Command | Lost 7 parts (1p2n3u1w) 12287 | -1/Command | Found Spectral Analyzer 12293 | -1/Command | Lost 3 parts (1n2u) 12311 | -1/Command | Identified exit to Surface 12312 | -1/Command | Identified Transdimensional Reconstructor 12312 | -1/Command | Failed to warp due to unstable space 12332 | -1/Command | Core integrity fell below 50% 12338 | -1/Command | System corruption reached 10% 12343 | -1/Command | Core integrity fell below 20% 12352 | -1/Command | Destroyed by C-57 Dissector with Dual-blade Saw Last Messages --------------- 12331_ Slug penetrates Wall. 12332_ Field Propulsion Array destroyed. 12332_ Penetrated by Slug. 12332_ Xenon Bombardment Thruster+ severed. 12333_ Slammed into C-57 Dissector. 12335_ Mak. Hacking Suite destroyed. 12336_ Mak. Hacking Suite severed. 12337_ Spectral Analyzer severed. 12337_ Slammed into C-57 Dissector. 12337_ Adv. Hacking Suite destroyed. 12337_ System corrupted by crushing effect (+5). 12338_ Slammed into C-57 Dissector. 12339_ M-36 Artificer repairs R-10 Processor Com. Wheel. 12340_ Spectral Analyzer severed. 12341_ Adv. Signal Interpreter severed. 12342_ Slug penetrates Wall. 12342_ Adv. Signal Interpreter destroyed. 12342_ Adv. Hacking Suite severed. 12343_ System Shield severed. Map ----- +----------------------------------------------------+ | ?????????????????????????????????????????????????? | | ?????????????????????????????????????????????????? | | ?????????????????????????????????????????????????? | | ?????????????????????????????????????????????????? | | ?????????????????????????????????????????????????? | | ?????????????????????????????????????????????????? | | ?????????????????????????????????????????????????? | | ?????????????????????????????????????????????????? | | ?????????????????????????????????????????????????? | | ?????????????????????????????????????????????????? | | ?????????????????????????????????????????????????? | | ?????????????????????????????????????????????????? | | ?????????????????????????????????????????????????? | | ???????????????????????????????????###########???? | | ???????????????????????????????????# #???? | | ?????????????????????????########### #???? | | ?????????????????????????# # #???? | | ?????????????????????????# # """" ##### | | ?????????????????????????# # """" # | | ?????????????????????????#!!! #* """" # | | ?????????????????????????#!!! # """" + | | ?????????????????????????#!!! # # | | ?????????????????????????? # # | | ????????????????###????????? ??# ! ! ##### | | ??????????####### #########+##### #???# | | ??????? R @ ccc sss k #???# | | ??????? c c #######+#######???# | | ?????????????#### ###### # = #???????# | | ????????????????###???????# # #???????# | | ??????????????????????????# # """ #???????# | | ???????????????????????#### # "Y" #???????# | | ???????????????????????# + " " #???????# | | ???????????????????????# # #???????# | | ???????????????????????# # #???????# | | ???????????????????????# # #???????? | | ???????????????????????# ###########???????? | | ???????????????????????# ##################? | | ???????????????????????# # | | ??????????